fUST/lending_fUST_20250817
["ID","MTS","AMOUNT","RATE_DAILY","PERIOD"]
[379723503,1755385838751,-500.0,0.00020131,2]
[379723504,1755385838760,-492.76,0.00020131,2]
[379723505,1755385838771,-784.78,0.00020131,2]
[379723506,1755385838780,-1106.0,0.00020131,2]
[379723507,1755385838791,-500.0,0.00020131,2]
[379723508,1755385838800,-151.0,0.00020131,2]
[379723509,1755385838811,-480.0,0.00020131,2]
[379723510,1755385838821,-151.0,0.00020131,2]
[379723511,1755385838830,-480.0,0.00020132,2]
[379723512,1755385838839,-480.0,0.00020132,2]
[379723513,1755385838849,-499.41,0.00020132,2]
[379723514,1755385838859,-480.0,0.00020132,2]
[379723515,1755385838868,-557.62,0.00020132,2]
[379723516,1755385838878,-480.0,0.00020132,2]
[379723517,1755385838891,-480.0,0.00020132,2]
[379723518,1755385838900,-480.0,0.00020132,2]
[379723519,1755385838910,-480.0,0.00020132,2]
[379723520,1755385838919,-443.97386721,0.00020132,2]
[379723521,1755385838928,-460.0,0.00020132,2]
[379723522,1755385838937,-480.0,0.00020132,2]
[379723523,1755385838947,-480.0,0.00020132,2]
[379723524,1755385838957,-480.0,0.00020132,2]
[379723525,1755385838967,-562.51060346,0.00020132,2]
[379723526,1755385838977,-423.66804916,0.00020132,2]
[379723527,1755385838987,-480.0,0.00020132,2]
[379723528,1755385838997,-480.0,0.00020132,2]
[379723529,1755385839007,-480.0,0.00020132,2]
[379723530,1755385839017,-480.0,0.00020132,2]
[379723531,1755385839027,-480.0,0.00020132,2]
[379723532,1755385839037,-440.0,0.00020132,2]
[379723533,1755385839048,-480.0,0.00020132,2]
[379723534,1755385839063,-480.0,0.00020132,2]
[379723535,1755385839084,-480.0,0.00020132,2]
[379723536,1755385839105,-480.0,0.00020132,2]
[379723537,1755385839120,-480.0,0.00020132,2]
[379723538,1755385839129,-480.0,0.00020132,2]
[379723539,1755385839140,-480.0,0.00020132,2]
[379723540,1755385839149,-480.0,0.00020132,2]
[379723541,1755385839159,-480.0,0.00020132,2]
[379723542,1755385839168,-440.0,0.00020132,2]
[379723543,1755385839177,-480.0,0.00020132,2]
[379723544,1755385839186,-480.0,0.00020132,2]
[379723545,1755385839196,-480.0,0.00020132,2]
[379723546,1755385839205,-480.0,0.00020132,2]
[379723547,1755385839214,-480.0,0.00020132,2]
[379723548,1755385839224,-480.0,0.00020132,2]
[379723549,1755385839234,-480.0,0.00020132,2]
[379723550,1755385839243,-574.49171777,0.00020132,2]
[379723551,1755385839252,-195.01925038,0.00020132,2]
[379723552,1755385839262,-480.0,0.00020132,2]
[379723553,1755385839272,-440.0,0.00020132,2]
[379723554,1755385839282,-480.0,0.00020132,2]
[379723555,1755385839291,-460.43017989,0.00020132,2]
[379723557,1755385839301,-480.0,0.00020132,2]
[379723559,1755385839310,-480.0,0.00020132,2]
[379723560,1755385839320,-441.18199576,0.00020132,2]
[379723563,1755385839330,-460.0,0.00020132,2]
[379723565,1755385839340,-480.0,0.00020132,2]
[379723567,1755385839349,-480.0,0.00020132,2]
[379723569,1755385839358,-480.0,0.00020132,2]
[379723571,1755385839367,-480.0,0.00020132,2]
[379723572,1755385839376,-480.0,0.00020132,2]
[379723573,1755385839386,-441.59428367,0.00020132,2]
[379723575,1755385839395,-480.0,0.00020132,2]
[379723577,1755385839405,-408.91524161,0.00020132,2]
[379723579,1755385839415,-480.0,0.00020132,2]
[379723581,1755385839425,-480.0,0.00020132,2]
[379723583,1755385839434,-531.38,0.00020132,2]
[379723585,1755385839443,-480.0,0.00020132,2]
[379723587,1755385839453,-480.0,0.00020132,2]
[379723589,1755385839462,-480.0,0.00020132,2]
[379723591,1755385839473,-480.0,0.00020132,2]
[379723593,1755385839482,-480.0,0.00020132,2]
[379723595,1755385839491,-480.0,0.00020132,2]
[379723597,1755385839500,-480.0,0.00020132,2]
[379723599,1755385839510,-480.0,0.00020132,2]
[379723601,1755385839519,-480.0,0.00020132,2]
[379723604,1755385839529,-480.0,0.00020132,2]
[379723606,1755385839538,-480.0,0.00020132,2]
[379723608,1755385839547,-520.30738997,0.00020132,2]
[379723610,1755385839556,-480.0,0.00020132,2]
[379723611,1755385839566,-460.0,0.00020132,2]
[379723612,1755385839576,-480.0,0.00020132,2]
[379723613,1755385839585,-480.0,0.00020132,2]
[379723615,1755385839594,-480.0,0.00020132,2]
[379723617,1755385839604,-586.81194652,0.00020132,2]
[379723619,1755385839613,-480.0,0.00020132,2]
[379723621,1755385839623,-659.75,0.00020132,2]
[379723623,1755385839632,-202.65308231,0.00020132,2]
[379723625,1755385839642,-480.0,0.00020132,2]
[379723627,1755385839651,-480.0,0.00020132,2]
[379723629,1755385839660,-480.0,0.00020132,2]
[379723631,1755385839670,-480.0,0.00020132,2]
[379723633,1755385839679,-480.0,0.00020132,2]
[379723635,1755385839690,-480.0,0.00020132,2]
[379723637,1755385839700,-480.0,0.00020132,2]
[379723639,1755385839710,-480.0,0.00020132,2]
[379723641,1755385839719,-480.0,0.00020132,2]
[379723643,1755385839728,-480.0,0.00020132,2]
[379723645,1755385839738,-480.0,0.00020132,2]
[379723647,1755385839747,-1030.58,0.00020132,2]
[379723649,1755385839756,-480.0,0.00020132,2]
[379723651,1755385839765,-1000.0,0.00020132,2]
[379723653,1755385839774,-525.94568075,0.00020132,2]
[379723655,1755385839784,-480.0,0.00020132,2]
[379723657,1755385839793,-480.0,0.00020132,2]
[379723659,1755385839803,-441.75929617,0.00020132,2]
[379723661,1755385839813,-480.0,0.00020132,2]
[379723663,1755385839823,-480.0,0.00020132,2]
[379723665,1755385839832,-480.0,0.00020132,2]
[379723667,1755385839842,-480.0,0.00020132,2]
[379723669,1755385839852,-480.0,0.00020132,2]
[379723671,1755385839862,-480.0,0.00020132,2]
[379723673,1755385839872,-480.0,0.00020132,2]
[379723675,1755385839884,-480.0,0.00020132,2]
[379723677,1755385839893,-480.0,0.00020132,2]
[379723679,1755385839903,-480.0,0.00020132,2]
[379723681,1755385839912,-480.0,0.00020132,2]
[379723683,1755385839922,-245.03785685,0.00020132,2]
[379723685,1755385839932,-441.44733662,0.00020132,2]
[379723687,1755385839941,-480.0,0.00020132,2]
[379723689,1755385839950,-480.0,0.00020132,2]
[379723691,1755385839961,-480.0,0.00020132,2]
[379723693,1755385839970,-500.0,0.00020132,2]
[379723695,1755385839980,-500.0,0.00020132,2]
[379723697,1755385839990,-480.0,0.00020132,2]
[379723699,1755385839999,-223.62867858,0.00020132,2]
[379723701,1755385840008,-480.0,0.00020132,2]
[379723703,1755385840018,-480.0,0.00020133,2]
[379723705,1755385840027,-7304.42,0.00020133,2]
[379723707,1755385840037,-480.0,0.00020133,2]
[379723709,1755385840046,-1497.46,0.00020133,2]
[379723711,1755385840055,-480.0,0.00020133,2]
[379723712,1755385840065,-480.0,0.00020133,2]
[379723713,1755385840075,-480.0,0.00020133,2]
[379723715,1755385840084,-6130.76,0.00020133,2]
[379723717,1755385840093,-480.0,0.00020133,2]
[379723719,1755385840103,-480.0,0.00020133,2]
[379723721,1755385840113,-480.0,0.00020133,2]
[379723723,1755385840125,-480.0,0.00020133,2]
[379723727,1755385840170,-905.9,0.00020133,2]
[379723730,1755385840198,-480.0,0.00020133,2]
[379723733,1755385840223,-852.22,0.00020133,2]
[379723735,1755385840233,-480.0,0.00020133,2]
[379723737,1755385840243,-500.0,0.00020133,2]
[379723738,1755385840253,-2204.7,0.00020133,2]
[379723739,1755385840262,-691.96,0.00020133,2]
[379723740,1755385840271,-480.0,0.00020133,2]
[379723741,1755385840281,-480.0,0.00020133,2]
[379723742,1755385840290,-480.0,0.00020133,2]
[379723743,1755385840299,-3875.29851602,0.00020134,2]
[379723744,1755385840309,-480.0,0.00020134,2]
[379723745,1755385840319,-480.0,0.00020134,2]
[379723746,1755385840329,-480.0,0.00020134,2]
[379723748,1755385840338,-480.0,0.00020134,2]
[379723750,1755385840347,-480.0,0.00020134,2]
[379723752,1755385840356,-480.0,0.00020134,2]
[379723754,1755385840366,-480.0,0.00020134,2]
[379723756,1755385840375,-414.60058556,0.00020134,2]
[379723758,1755385840384,-480.0,0.00020134,2]
[379723760,1755385840393,-363.23265016,0.00020134,2]
[379723762,1755385840403,-480.0,0.00020134,2]
[379723764,1755385840412,-480.0,0.00020134,2]
[379723766,1755385840421,-480.0,0.00020134,2]
[379723767,1755385840430,-480.0,0.00020134,2]
[379723770,1755385840440,-480.0,0.00020134,2]
[379723771,1755385840450,-480.0,0.00020134,2]
[379723774,1755385840459,-2389.76,0.00020134,2]
[379723775,1755385840468,-480.0,0.00020134,2]
[379723777,1755385840478,-550.76,0.00020135,2]
[379723779,1755385840487,-298.939447,0.00020187,2]
[379723781,1755385840496,-480.0,0.00020216,2]
[379723783,1755385840505,-500.0,0.00020216,2]
[379723785,1755385840516,-271.0,0.00020266,2]
[379723787,1755385840526,-500.0,0.00020273,2]
[379723789,1755385840535,-1262.17335192,0.00020306,2]
[379723791,1755385840546,-500.0,0.00020317,2]
[379723793,1755385840555,-151.0,0.00020317,2]
[379723796,1755385840565,-500.0,0.00020317,2]
[379723798,1755385840575,-151.0,0.00020317,2]
[379723799,1755385840583,-151.0,0.00020317,2]
[379723801,1755385840592,-500.0,0.00020317,2]
[379723803,1755385840602,-151.0,0.00020317,2]
[379723805,1755385840611,-500.0,0.00020317,2]
[379723807,1755385840622,-151.0,0.00020317,2]
[379723810,1755385840632,-500.0,0.00020317,2]
[379723811,1755385840641,-151.0,0.00020317,2]
[379723814,1755385840650,-500.0,0.00020317,2]
[379723815,1755385840659,-151.0,0.00020317,2]
[379723817,1755385840669,-500.0,0.00020317,2]
[379723819,1755385840678,-17842.522448,0.00020317,2]
[379723821,1755385840687,-151.0,0.00020317,2]
[379723823,1755385840696,-500.0,0.00020317,2]
[379723825,1755385840706,-151.0,0.00020317,2]
[379723827,1755385840714,-500.0,0.00020317,2]
[379723829,1755385840724,-151.0,0.00020317,2]
[379723831,1755385840735,-500.0,0.00020317,2]
[379723833,1755385840744,-500.0,0.00020317,2]
[379723835,1755385840753,-500.0,0.00020317,2]
[379723837,1755385840762,-500.0,0.00020317,2]
[379723839,1755385840771,-500.0,0.00020317,2]
[379723841,1755385840780,-500.0,0.00020317,2]
[379723843,1755385840789,-500.0,0.00020317,2]
[379723845,1755385840799,-500.0,0.00020317,2]
[379723847,1755385840808,-151.0,0.00020317,2]
[379723849,1755385840817,-151.0,0.00020317,2]
[379723851,1755385840826,-151.0,0.00020317,2]
[379723853,1755385840835,-151.0,0.00020317,2]
[379723855,1755385840844,-151.0,0.00020317,2]
[379723857,1755385840854,-151.0,0.00020317,2]
[379723859,1755385840863,-151.0,0.00020317,2]
[379723861,1755385840873,-151.0,0.00020317,2]
[379723863,1755385840885,-551.09,0.00020403,2]
[379723865,1755385840894,-607.23,0.00020403,2]
[379723867,1755385840903,-796.43,0.00020403,2]
[379723869,1755385840914,-2081.38,0.00020403,2]
[379723871,1755385840923,-480.0,0.00020403,2]
[379723873,1755385840933,-480.0,0.00020404,2]
[379723875,1755385840942,-480.0,0.00020404,2]
[379723877,1755385840951,-480.0,0.00020404,2]
[379723879,1755385840960,-480.0,0.00020404,2]
[379723881,1755385840969,-480.0,0.00020404,2]
[379723883,1755385840979,-343.17472576,0.00020404,2]
[379723885,1755385840988,-480.0,0.00020404,2]
[379723887,1755385840997,-480.0,0.00020404,2]
[379723889,1755385841006,-480.0,0.00020404,2]
[379723891,1755385841016,-810.36,0.00020404,2]
[379723893,1755385841025,-480.0,0.00020404,2]
[379723895,1755385841034,-1222.88,0.00020404,2]
[379723897,1755385841043,-703.8,0.00020404,2]
[379723913,1755385841189,-480.0,0.00020404,2]
[379723915,1755385841199,-480.0,0.00020404,2]
[379723917,1755385841208,-480.0,0.00020404,2]
[379723919,1755385841217,-480.0,0.00020404,2]
[379723921,1755385841226,-480.0,0.00020404,2]
[379723923,1755385841236,-4377.32,0.00020404,2]
[379723925,1755385841245,-536.46,0.00020404,2]
[379723927,1755385841254,-693.04,0.00020404,2]
[379723929,1755385841264,-636.54,0.00020404,2]
[379723931,1755385841273,-480.0,0.00020404,2]
[379723933,1755385841282,-480.0,0.00020404,2]
[379723935,1755385841292,-480.0,0.00020404,2]
[379723937,1755385841301,-721.78,0.00020404,2]
[379723939,1755385841310,-629.73,0.00020404,2]
[379723941,1755385841320,-480.0,0.00020404,2]
[379723943,1755385841330,-480.0,0.00020404,2]
[379723945,1755385841340,-480.0,0.00020404,2]
[379723947,1755385841349,-1542.15,0.00020404,2]
[379723949,1755385841359,-2226.67,0.00020404,2]
[379723951,1755385841368,-480.0,0.00020404,2]
[379723954,1755385841378,-770.9,0.00020404,2]
[379723956,1755385841388,-796.54,0.00020404,2]
[379723957,1755385841397,-480.0,0.00020404,2]
[379723959,1755385841406,-565.34,0.00020404,2]
[379723962,1755385841415,-1653.75,0.00020404,2]
[379723963,1755385841425,-558.56,0.00020404,2]
[379723965,1755385841434,-480.0,0.00020404,2]
[379723967,1755385841444,-549.41,0.00020404,2]
[379723970,1755385841454,-2621.34,0.00020404,2]
[379723972,1755385841463,-480.0,0.00020404,2]
[379723974,1755385841473,-480.0,0.00020404,2]
[379723976,1755385841482,-480.0,0.00020404,2]
[379723977,1755385841491,-480.0,0.00020404,2]
[379723980,1755385841500,-614.73368974,0.00020404,2]
[379723981,1755385841510,-480.0,0.00020404,2]
[379723983,1755385841519,-753.82,0.00020404,2]
[379723985,1755385841529,-480.0,0.00020404,2]
[379723987,1755385841539,-671.58,0.00020404,2]
[379723989,1755385841549,-440.0,0.00020404,2]
[379723991,1755385841558,-480.0,0.00020404,2]
[379723993,1755385841568,-232.00855806,0.00020404,2]
[379723995,1755385841578,-480.0,0.00020404,2]
[379723997,1755385841588,-938.46,0.00020404,2]
[379723999,1755385841597,-480.0,0.00020404,2]
[379724001,1755385841607,-778.72,0.00020404,2]
[379724003,1755385841617,-814.12,0.00020404,2]
[379724005,1755385841627,-654.55,0.00020404,2]
[379724007,1755385841637,-480.0,0.00020404,2]
[379724009,1755385841646,-151.0,0.00020405,2]
[379724011,1755385841656,-151.0,0.00020405,2]
[379724013,1755385841665,-151.0,0.00020405,2]
[379724015,1755385841675,-198.0,0.00020405,2]
[379724017,1755385841684,-151.0,0.00020405,2]
[379724019,1755385841694,-204.13346045,0.00020405,2]
[379724021,1755385841704,-151.0,0.00020405,2]
[379724023,1755385841714,-500.0,0.00020405,2]
[379724026,1755385841724,-1106.0,0.00020405,2]
[379724027,1755385841733,-500.0,0.00020405,2]
[379724029,1755385841743,-151.0,0.00020405,2]
[379724031,1755385841753,-923.72,0.00020405,2]
[379724034,1755385841762,-480.0,0.00020405,2]
[379724035,1755385841771,-480.0,0.00020405,2]
[379724037,1755385841782,-480.0,0.00020405,2]
[379724039,1755385841793,-1069.56,0.00020405,2]
[379724041,1755385841803,-480.0,0.00020405,2]
[379724044,1755385841813,-483.02,0.00020405,2]
[379724046,1755385841823,-520.44,0.00020405,2]
[379724048,1755385841832,-709.55,0.00020405,2]
[379724049,1755385841841,-512.26,0.00020405,2]
[379724051,1755385841850,-1150.28,0.00020405,2]
[379724053,1755385841859,-480.0,0.00020405,2]
[379724055,1755385841868,-702.82,0.00020405,2]
[379724057,1755385841878,-480.0,0.00020405,2]
[379724059,1755385841892,-1331.81,0.00020405,2]
[379724061,1755385841901,-635.95,0.00020405,2]
[379724064,1755385841912,-931.96,0.00020405,2]
[379724066,1755385841923,-480.0,0.00020405,2]
[379724067,1755385841934,-545.46,0.00020405,2]
[379724069,1755385841944,-504.06,0.00020405,2]
[379724072,1755385841954,-305.91501878,0.00020405,2]
[379724074,1755385841965,-2449.06,0.00020405,2]
[379724076,1755385841975,-893.39,0.00020405,2]
[379724078,1755385841984,-480.0,0.00020405,2]
[379724080,1755385841993,-590.25,0.00020405,2]
[379724082,1755385842003,-870.59,0.00020405,2]
[379724084,1755385842012,-480.0,0.00020405,2]
[379724086,1755385842022,-480.0,0.00020405,2]
[379724088,1755385842032,-480.0,0.00020405,2]
[379724090,1755385842041,-782.26,0.00020405,2]
[379724092,1755385842051,-620.8,0.00020405,2]
[379724094,1755385842065,-7785.62,0.00020405,2]
[379724096,1755385842074,-500.0,0.00020405,2]
[379724098,1755385842084,-492.76,0.00020405,2]
[379724100,1755385842093,-784.78,0.00020405,2]
[379724102,1755385842102,-480.0,0.00020405,2]
[379724104,1755385842112,-480.0,0.00020406,2]
[379724107,1755385842123,-480.0,0.00020406,2]
[379724108,1755385842132,-499.41,0.00020406,2]
[379724111,1755385842141,-480.0,0.00020406,2]
[379724112,1755385842151,-557.62,0.00020406,2]
[379724115,1755385842161,-480.0,0.00020406,2]
[379724117,1755385842170,-480.0,0.00020406,2]
[379724119,1755385842179,-480.0,0.00020406,2]
[379724120,1755385842189,-230.19014635,0.00020406,2]
[379724122,1755385842198,-480.0,0.00020406,2]
[379724125,1755385842208,-480.0,0.00020406,2]
[379724127,1755385842217,-480.0,0.00020406,2]
[379724129,1755385842228,-480.0,0.00020406,2]
[379724131,1755385842237,-480.0,0.00020406,2]
[379724133,1755385842247,-480.0,0.00020406,2]
[379724135,1755385842256,-531.38,0.00020406,2]
[379724137,1755385842266,-480.0,0.00020406,2]
[379724139,1755385842275,-480.0,0.00020406,2]
[379724142,1755385842285,-480.0,0.00020406,2]
[379724144,1755385842294,-659.75,0.00020406,2]
[379724147,1755385842304,-480.0,0.00020406,2]
[379724150,1755385842313,-480.0,0.00020406,2]
[379724151,1755385842322,-1030.58,0.00020406,2]
[379724152,1755385842331,-480.0,0.00020406,2]
[379724153,1755385842341,-390.16240597,0.00020406,2]
[379724154,1755385842351,-480.0,0.00020406,2]
[379724155,1755385842360,-480.0,0.00020406,2]
[379724156,1755385842370,-596.69,0.00020406,2]
[379724157,1755385842380,-480.0,0.00020406,2]
[379724159,1755385842389,-480.0,0.00020406,2]
[379724162,1755385842399,-500.0,0.00020406,2]
[379724164,1755385842408,-590.8,0.00020406,2]
[379724167,1755385842417,-480.0,0.00020406,2]
[379724168,1755385842427,-151.0,0.00020406,2]
[379724169,1755385842437,-151.0,0.00020406,2]
[379724170,1755385842446,-480.0,0.00020406,2]
[379724171,1755385842455,-480.0,0.00020407,2]
[379724172,1755385842465,-7304.42,0.00020407,2]
[379724173,1755385842474,-480.0,0.00020407,2]
[379724174,1755385842484,-1497.46,0.00020407,2]
[379724175,1755385842493,-480.0,0.00020407,2]
[379724176,1755385842502,-480.0,0.00020407,2]
[379724177,1755385842511,-6130.76,0.00020407,2]
[379724178,1755385842520,-151.0,0.00020407,2]
[379724179,1755385842529,-480.0,0.00020407,2]
[379724180,1755385842538,-480.0,0.00020407,2]
[379724181,1755385842548,-480.0,0.00020407,2]
[379724182,1755385842557,-151.0,0.00020407,2]
[379724183,1755385842566,-905.9,0.00020407,2]
[379724185,1755385842575,-480.0,0.00020407,2]
[379724186,1755385842585,-852.22,0.00020407,2]
[379724187,1755385842594,-2204.7,0.00020407,2]
[379724188,1755385842603,-691.96,0.00020407,2]
[379724189,1755385842612,-480.0,0.00020408,2]
[379724190,1755385842622,-480.0,0.00020408,2]
[379724191,1755385842631,-480.0,0.00020408,2]
[379724193,1755385842641,-480.0,0.00020408,2]
[379724195,1755385842651,-2389.76,0.00020408,2]
[379724197,1755385842660,-480.0,0.00020408,2]
[379724199,1755385842670,-151.0,0.00020413,2]
[379724201,1755385842679,-151.0,0.00020413,2]
[379724203,1755385842688,-271.0,0.00020455,2]
[379724205,1755385842699,-580.575816,0.000205,2]
[379724207,1755385842708,-580.575816,0.000205,2]
[379724209,1755385842718,-191.7840803,0.000205,2]
[379724211,1755385842728,-151.0,0.00020501,2]
[379724213,1755385842738,-151.0,0.00020501,2]
[379724215,1755385842747,-151.0,0.00020501,2]
[379724217,1755385842756,-151.0,0.00020501,2]
[379724219,1755385842766,-496.0,0.00020501,2]
[379724221,1755385842776,-496.0,0.00020514,2]
[379724223,1755385842785,-160.0,0.00020526,2]
[379724225,1755385842795,-232.11368524,0.00020526,2]
[379724227,1755385842805,-160.0,0.00020526,2]
[379724229,1755385842815,-215.68093138,0.00020526,2]
[379724231,1755385842825,-528.38334358,0.00020526,2]
[379724233,1755385842836,-843.58077381,0.00020526,2]
[379724235,1755385842846,-160.0,0.00020526,2]
[379724237,1755385842855,-12681.6255076,0.00020526,2]
[379724239,1755385842865,-417.15472785,0.00020526,2]
[379724241,1755385842875,-160.0,0.00020526,2]
[379724243,1755385842888,-160.0,0.00020526,2]
[379724245,1755385842897,-462.1417622,0.00020526,2]
[379724247,1755385842907,-160.0,0.00020526,2]
[379724250,1755385842917,-151.0,0.00020529,2]
[379724252,1755385842926,-151.0,0.00020529,2]
[379724255,1755385842936,-200.0,0.00020536,20]
[379724258,1755385842945,-200.0,0.00020536,20]
[379724261,1755385842954,-200.0,0.00020536,20]
[379724264,1755385842964,-200.0,0.00020536,20]
[379724266,1755385842974,-200.0,0.00020536,20]
[379724268,1755385842983,-200.0,0.00020536,20]
[379724270,1755385842992,-200.0,0.00020536,20]
[379724272,1755385843002,-200.0,0.00020536,20]
[379724274,1755385843011,-200.0,0.00020536,20]
[379724276,1755385843021,-200.0,0.00020536,20]
[379724278,1755385843030,-600.0,0.00020536,20]
[379724280,1755385843040,-271.0,0.00020542,2]
[379724282,1755385843050,-1000.0,0.0002058,2]
[379724284,1755385843059,-293.7439445,0.000206,2]
[379724286,1755385843069,-293.7439445,0.000206,2]
[379724288,1755385843079,-293.7439445,0.000206,2]
[379724290,1755385843089,-293.7439445,0.000206,2]
[379724293,1755385843099,-293.7439445,0.000206,2]
[379724295,1755385843108,-293.7439445,0.000206,2]
[379724297,1755385843118,-1161.151632,0.000206,2]
[379724299,1755385843128,-580.575816,0.000206,2]
[379724301,1755385843137,-580.575816,0.000206,2]
[379724303,1755385843147,-496.0,0.00020645,2]
[379724305,1755385843156,-496.0,0.00020667,2]
[379724307,1755385843166,-551.09,0.00020677,2]
[379724309,1755385843176,-607.23,0.00020677,2]
[379724311,1755385843185,-796.43,0.00020677,2]
[379724313,1755385843195,-2081.38,0.00020677,2]
[379724315,1755385843205,-480.0,0.00020677,2]
[379724317,1755385843214,-480.0,0.00020678,2]
[379724319,1755385843223,-480.0,0.00020678,2]
[379724322,1755385843233,-480.0,0.00020678,2]
[379724324,1755385843242,-480.0,0.00020678,2]
[379724326,1755385843252,-480.0,0.00020678,2]
[379724328,1755385843261,-480.0,0.00020678,2]
[379724330,1755385843270,-480.0,0.00020678,2]
[379724332,1755385843280,-151.0,0.00020678,2]
[379724334,1755385843289,-810.36,0.00020678,2]
[379724336,1755385843298,-480.0,0.00020678,2]
[379724338,1755385843307,-1222.88,0.00020678,2]
[379724340,1755385843316,-703.8,0.00020678,2]
[379724342,1755385843325,-480.0,0.00020678,2]
[379724344,1755385843335,-480.0,0.00020678,2]
[379724346,1755385843345,-480.0,0.00020678,2]
[379724348,1755385843355,-480.0,0.00020678,2]
[379724350,1755385843364,-480.0,0.00020678,2]
[379724352,1755385843373,-4377.32,0.00020678,2]
[379724354,1755385843382,-536.46,0.00020678,2]
[379724356,1755385843392,-693.04,0.00020678,2]
[379724357,1755385843401,-636.54,0.00020678,2]
[379724359,1755385843410,-480.0,0.00020678,2]
[379724362,1755385843420,-480.0,0.00020678,2]
[379724364,1755385843429,-480.0,0.00020678,2]
[379724366,1755385843439,-721.78,0.00020678,2]
[379724368,1755385843449,-629.73,0.00020678,2]
[379724370,1755385843458,-480.0,0.00020678,2]
[379724372,1755385843467,-480.0,0.00020678,2]
[379724374,1755385843476,-480.0,0.00020678,2]
[379724376,1755385843485,-1542.15,0.00020678,2]
[379724378,1755385843495,-2226.67,0.00020678,2]
[379724380,1755385843504,-480.0,0.00020678,2]
[379724382,1755385843514,-770.9,0.00020678,2]
[379724384,1755385843523,-796.54,0.00020678,2]
[379724386,1755385843533,-480.0,0.00020678,2]
[379724388,1755385843543,-565.34,0.00020678,2]
[379724390,1755385843552,-1653.75,0.00020678,2]
[379724392,1755385843561,-558.56,0.00020678,2]
[379724394,1755385843571,-463.59700834,0.00020678,2]
[379724396,1755385843581,-549.41,0.00020678,2]
[379724398,1755385843590,-2621.34,0.00020678,2]
[379724400,1755385843600,-480.0,0.00020678,2]
[379724402,1755385843610,-480.0,0.00020678,2]
[379724404,1755385843620,-480.0,0.00020678,2]
[379724406,1755385843629,-500.0,0.00020678,2]
[379724408,1755385843638,-480.0,0.00020678,2]
[379724410,1755385843647,-753.82,0.00020678,2]
[379724412,1755385843656,-480.0,0.00020678,2]
[379724414,1755385843666,-671.58,0.00020678,2]
[379724416,1755385843675,-480.0,0.00020678,2]
[379724418,1755385843684,-480.0,0.00020678,2]
[379724420,1755385843693,-938.46,0.00020678,2]
[379724422,1755385843702,-151.0,0.00020678,2]
[379724424,1755385843712,-778.72,0.00020678,2]
[379724426,1755385843721,-814.12,0.00020678,2]
[379724428,1755385843730,-654.55,0.00020678,2]
[379724430,1755385843739,-151.0,0.00020678,2]
[379724432,1755385843749,-480.0,0.00020678,2]
[379724434,1755385843758,-198.0,0.00020679,2]
[379724436,1755385843767,-151.0,0.00020679,2]